bitfinex-derivatives/quotes_BTCF0:USTF0_20241130
["timestamp","ask_amount","ask_price","bid_price","bid_amount"]
[1732975148695,0.051803,96476.0,96475.0,0.0941]
[1732975150195,0.052803,96476.0,96475.0,0.0941]
[1732975151903,0.053803,96476.0,96475.0,0.0941]
[1732975152811,0.051806,96469.0,96468.0,0.12476]
[1732975154395,0.052806,96469.0,96468.0,0.12476]
[1732975154599,0.052806,96469.0,96466.0,0.0303]
[1732975154600,0.001,96469.0,96466.0,0.0303]
[1732975154799,0.051807,96467.0,96466.0,0.0303]
[1732975156502,0.052807,96467.0,96466.0,0.0303]
[1732975158603,0.053807,96467.0,96466.0,0.0303]
[1732975160406,0.053807,96467.0,96466.0,0.082108]
[1732975161602,0.21023455,96467.0,96466.0,0.206868]
[1732975163210,0.21023455,96467.0,96466.0,0.15506]
[1732975169413,0.21023455,96467.0,96464.0,8.832e-05]
[1732975169618,0.051808,96465.0,96464.0,8.832e-05]
[1732975169913,0.20692764,96465.0,96464.0,8.832e-05]
[1732975172213,0.20892764,96465.0,96464.0,8.832e-05]
[1732975179006,0.20892764,96465.0,96464.0,0.05189732]
[1732975185019,0.15711964,96465.0,96464.0,0.05189732]
[1732975185613,0.002,96465.0,96464.0,0.05189732]
[1732975185808,0.01209323,96478.0,96476.0,0.051802]
[1732975186019,0.051802,96478.0,96473.0,0.051804]
[1732975186720,0.051802,96478.0,96476.0,0.051802]
[1732975187120,0.051802,96478.0,96476.0,0.052802]
[1732975188217,0.051802,96478.0,96476.0,0.001]
[1732975188421,0.052802,96478.0,96476.0,0.001]
[1732975189026,0.052802,96478.0,96476.0,0.002]
[1732975190925,0.052802,96478.0,96477.0,0.051802]
[1732975192025,0.001,96478.0,96477.0,0.051802]
[1732975192225,0.001,96478.0,96477.0,0.052802]
[1732975193427,0.3618,96478.0,96477.0,0.052802]
[1732975193727,0.3618,96478.0,96477.0,0.053802]
[1732975195819,0.413601,96478.0,96477.0,0.053802]
[1732975200519,0.413601,96478.0,96477.0,0.002]
[1732975202830,0.56820005,96478.0,96477.0,0.002]
[1732975203020,0.56820005,96478.0,96464.0,8.832e-05]
[1732975203021,0.051808,96465.0,96464.0,8.832e-05]
[1732975203225,0.051821,96441.0,96435.0,0.24861644]
[1732975203529,0.051821,96441.0,96431.0,0.3608]
[1732975203530,0.3608,96441.0,96439.0,0.051822]
[1732975203720,0.051821,96442.0,96440.0,0.0645]
[1732975203920,0.051822,96439.0,96438.0,0.00116]
[1732975204134,0.05190678,96439.0,96438.0,0.00116]
[1732975205032,0.17622678,96439.0,96438.0,0.00116]
[1732975206131,0.189579,96439.0,96438.0,0.00216]
[1732975206428,0.34557547,96439.0,96438.0,0.00216]
[1732975206826,0.34657547,96439.0,96438.0,0.00216]
[1732975207334,0.051833,96419.0,96413.0,0.12432]
[1732975207523,0.051833,96419.0,96415.0,0.051835]
[1732975208023,0.051834,96417.0,96415.0,0.051835]
[1732975208222,0.3608,96425.0,96409.0,0.051838]
[1732975208223,0.051835,96416.0,96409.0,0.051838]
[1732975208724,0.051835,96416.0,96408.0,0.3608]
[1732975208725,0.051835,96416.0,96411.0,0.051837]
[1732975208930,0.051835,96416.0,96408.0,0.3608]
[1732975208931,0.12436,96420.0,96408.0,0.3608]
[1732975209333,0.412635,96416.0,96408.0,0.3608]
[1732975209628,0.412635,96416.0,96411.0,0.051837]
[1732975210023,0.412635,96416.0,96408.0,0.3608]
[1732975210528,0.051842,96403.0,96400.0,0.1]
[1732975210729,0.051842,96403.0,96401.0,0.051843]
[1732975210937,0.12436,96409.0,96404.0,0.051841]
[1732975211233,0.15458481,96408.0,96404.0,0.051841]
[1732975211634,0.20642381,96408.0,96405.0,0.051841]
[1732975212428,0.051841,96405.0,96400.0,0.1]
[1732975212629,0.3608,96407.0,96400.0,0.151843]
[1732975212934,0.051843,96401.0,96400.0,0.151843]
[1732975213929,0.001,96403.0,96400.0,0.151843]
[1732975214233,0.3608,96407.0,96400.0,0.151843]
[1732975214234,0.05184,96406.0,96401.0,0.051843]
[1732975215336,0.051841,96405.0,96401.0,0.051843]
[1732975217228,0.052841,96405.0,96401.0,0.051843]
[1732975218334,0.053841,96405.0,96401.0,0.051843]
[1732975218527,0.051842,96404.0,96401.0,0.051843]
[1732975219935,0.053842,96404.0,96401.0,0.051843]
[1732975220432,0.051843,96401.0,96400.0,0.151843]
[1732975220831,0.002,96404.0,96403.0,0.051842]
[1732975221436,0.001,96404.0,96403.0,0.051842]
[1732975221736,0.001,96401.0,96400.0,0.512643]
[1732975222132,0.1244,96411.0,96400.0,0.46404192]
[1732975222133,0.1552983,96407.0,96400.0,0.46404192]
[1732975222333,0.1244,96411.0,96406.0,0.05184]
[1732975222638,0.1244,96411.0,96400.0,0.51479712]
[1732975222639,0.051839,96409.0,96400.0,0.51479712]
[1732975222935,0.15593104,96408.0,96400.0,0.51479712]
[1732975223138,0.051841,96404.0,96402.0,0.051842]
[1732975223328,0.052841,96404.0,96402.0,0.051842]
[1732975223530,0.052841,96404.0,96400.0,0.1]
[1732975223531,0.001,96404.0,96400.0,0.1]
[1732975223832,0.051843,96401.0,96400.0,0.1]
[1732975224135,0.051843,96401.0,96390.0,0.06433031]
[1732975224136,0.051848,96391.0,96390.0,0.06433031]
[1732975224446,0.69163548,96391.0,96390.0,0.00013031]
[1732975225931,0.051856,96376.0,96375.0,0.0332]
[1732975226238,0.051856,96376.0,96375.0,0.00324321]
[1732975226239,0.56725001,96376.0,96375.0,0.00324321]
[1732975227131,0.56825001,96376.0,96375.0,0.0042434]
[1732975227642,0.56925001,96376.0,96375.0,0.0042434]
[1732975229149,0.56925001,96376.0,96375.0,0.0032434]
[1732975229937,0.56925001,96376.0,96375.0,0.00843285]
[1732975230240,0.56925001,96376.0,96375.0,0.0032434]
[1732975230438,0.56925001,96376.0,96375.0,0.00843286]
[1732975231544,0.69369001,96376.0,96375.0,0.00843286]
[1732975232751,0.69369001,96376.0,96375.0,0.01491968]
[1732975232752,0.56925001,96376.0,96375.0,0.01491968]
[1732975233050,0.56825001,96376.0,96375.0,0.01491968]
[1732975233249,0.56925001,96376.0,96375.0,0.01491968]
[1732975233451,0.51739401,96376.0,96375.0,0.01491968]
[1732975233745,0.15559401,96376.0,96375.0,0.01491968]
[1732975234149,0.00689401,96376.0,96375.0,0.01491968]
[1732975234645,0.00589401,96376.0,96375.0,0.01491968]
[1732975234847,0.00689401,96376.0,96375.0,0.01491968]
[1732975235038,0.02075626,96385.0,96384.0,0.051852]
[1732975235235,0.02075626,96385.0,96384.0,0.42757168]
[1732975235749,0.051851,96386.0,96384.0,0.37571968]
[1732975235949,0.051851,96386.0,96385.0,0.01491968]
[1732975236449,0.20836197,96386.0,96385.0,0.01491968]
[1732975237140,0.20836197,96386.0,96385.0,0.03983286]
[1732975237344,0.20836197,96386.0,96385.0,0.04083286]
[1732975237545,0.20936197,96386.0,96385.0,0.07113286]
[1732975237744,0.20936197,96386.0,96385.0,0.07113098]
[1732975238147,0.21036197,96386.0,96385.0,0.0637]
[1732975238455,0.21036197,96386.0,96385.0,0.07213098]
[1732975239453,0.15851097,96386.0,96385.0,0.07213098]
[1732975239848,0.15851097,96386.0,96385.0,0.07213099]
[1732975240453,0.15851097,96386.0,96385.0,0.10911636]
[1732975240949,0.15851097,96386.0,96385.0,0.10263099]
[1732975243155,0.15851097,96386.0,96385.0,0.10911636]
[1732975243459,0.15851097,96386.0,96385.0,0.10911635]
[1732975244256,0.15851097,96386.0,96385.0,0.10263099]
[1732975244554,0.15851097,96386.0,96385.0,0.10911601]
[1732975245252,0.15851097,96386.0,96385.0,0.10263099]
[1732975245857,0.15851097,96386.0,96385.0,0.15448199]
[1732975247148,0.15851097,96386.0,96385.0,0.14929369]
[1732975247352,0.002,96386.0,96385.0,0.14929369]
[1732975247558,0.002,96386.0,96385.0,0.15448169]
[1732975247855,0.002,96386.0,96385.0,0.146051]
[1732975248156,0.002,96386.0,96385.0,0.1544808]
[1732975249750,0.002,96386.0,96385.0,0.14929323]
[1732975252151,0.002,96386.0,96385.0,0.146051]
[1732975254750,0.002,96386.0,96385.0,0.270491]
[1732975256865,0.002,96386.0,96385.0,0.146051]
[1732975264364,0.053851,96386.0,96385.0,0.053851]
[1732975264555,0.053851,96386.0,96385.0,0.12584]
[1732975264870,0.053851,96386.0,96385.0,0.002]
[1732975267662,0.002,96386.0,96385.0,0.053851]
[1732975269968,0.002,96386.0,96385.0,0.414651]
[1732975271670,0.002,96386.0,96385.0,0.43086272]
[1732975272758,0.21551711,96397.0,96385.0,0.37494952]
[1732975272976,0.63780489,96408.0,96396.0,0.3608]
[1732975272977,0.21551711,96401.0,96396.0,0.3608]
[1732975273168,0.00080001,96408.0,96396.0,0.3608]
[1732975273169,0.21551711,96402.0,96397.0,0.18874]
[1732975273365,0.30801263,96418.0,96401.0,0.051843]
[1732975273366,0.21560367,96403.0,96401.0,0.051843]
[1732975273558,8.656e-05,96403.0,96401.0,0.051843]
[1732975275070,8.656e-05,96403.0,96401.0,0.052843]
[1732975276269,0.001,96402.0,96401.0,0.052843]
[1732975276862,0.00108656,96403.0,96401.0,0.054843]
[1732975277564,0.00108656,96403.0,96401.0,0.415643]
[1732975277876,0.00208656,96403.0,96401.0,0.418643]
[1732975278563,0.00108656,96403.0,96401.0,0.416643]
[1732975278763,0.001,96402.0,96401.0,0.425643]
[1732975279170,0.001,96402.0,96401.0,0.43775823]
[1732975279367,0.00208656,96403.0,96401.0,0.43775823]
[1732975279975,0.001,96402.0,96401.0,0.43775823]
[1732975280170,0.002,96402.0,96401.0,0.43875823]
[1732975280669,0.001,96402.0,96401.0,0.43875823]
[1732975281470,0.00108656,96403.0,96401.0,0.43375823]
[1732975281665,0.00208656,96403.0,96401.0,0.43875823]
[1732975282783,0.00208656,96403.0,96402.0,0.12384]
[1732975282784,0.00108656,96403.0,96402.0,0.12384]
[1732975283076,0.00155632,96420.0,96402.0,0.12384]
[1732975283278,0.30801263,96442.0,96402.0,0.12384]
[1732975283279,0.0315,96439.0,96421.0,0.051832]
[1732975283577,0.15620584,96437.0,96435.0,0.051824]
[1732975283968,0.0315,96439.0,96433.0,0.12384]
[1732975283969,0.0315,96439.0,96436.0,0.051824]
[1732975284167,0.0315,96439.0,96433.0,0.12384]
[1732975284168,0.0001006,96438.0,96433.0,0.12384]
[1732975284368,0.15620584,96437.0,96433.0,0.12384]
[1732975284573,0.15620584,96437.0,96433.0,0.175665]
[1732975284776,0.15620584,96437.0,96429.0,0.08273504]
[1732975284777,0.051826,96433.0,96429.0,0.00010299]
[1732975285274,0.1549261,96436.0,96429.0,0.00010299]
[1732975285576,0.3608,96437.0,96433.0,0.051826]
[1732975285876,0.3608,96437.0,96429.0,0.00010299]
[1732975285877,0.051825,96435.0,96429.0,0.00010299]
[1732975286067,0.15603258,96436.0,96429.0,0.05192999]
[1732975286268,0.36260001,96437.0,96429.0,0.05192999]
[1732975286467,0.3618,96437.0,96429.0,0.05192999]
[1732975286671,0.15486064,96436.0,96429.0,0.00210299]
[1732975286870,0.051825,96435.0,96431.0,0.051826]
[1732975287467,0.3608,96437.0,96429.0,0.00210299]
[1732975287670,0.051827,96431.0,96430.0,0.1238]
[1732975288074,0.051827,96431.0,96429.0,0.00210299]
[1732975288285,0.051827,96431.0,96430.0,0.1238]
[1732975288574,0.051827,96431.0,96429.0,0.00210299]
[1732975288777,0.051827,96431.0,96429.0,0.12590299]
[1732975288978,0.051827,96431.0,96429.0,0.17772999]
[1732975289281,0.051827,96431.0,96429.0,0.17572999]
[1732975289668,0.051827,96431.0,96430.0,0.1238]
[1732975290176,0.052827,96431.0,96430.0,0.1238]
[1732975291674,0.001,96431.0,96430.0,0.1238]
[1732975292068,0.001,96431.0,96430.0,0.1248]
[1732975293071,0.001,96431.0,96430.0,0.001]
[1732975293382,0.001,96431.0,96430.0,0.12492]
[1732975296976,0.0001006,96438.0,96437.0,0.051823]
[1732975298873,0.0011006,96438.0,96437.0,0.059823]
[1732975299682,0.0011006,96438.0,96437.0,0.420623]
[1732975300071,0.0011006,96438.0,96437.0,0.424623]
[1732975309386,0.3608,96456.0,96454.0,0.051814]
[1732975309589,0.3608,96456.0,96454.0,0.175694]
[1732975309788,0.15804233,96455.0,96454.0,0.175694]
[1732975310295,0.15813471,96455.0,96454.0,0.175694]
[1732975311175,0.00164803,96455.0,96454.0,0.175694]
[1732975311778,0.00264803,96455.0,96454.0,0.175694]
[1732975312383,0.00264803,96455.0,96454.0,0.536494]
[1732975312583,0.00109238,96455.0,96454.0,0.536494]
[1732975313185,9.238e-05,96455.0,96454.0,0.540494]
[1732975313887,0.00109238,96455.0,96454.0,0.549494]
[1732975314687,0.37294796,96468.0,96467.0,0.051807]
[1732975314688,0.3608,96468.0,96467.0,0.051807]
[1732975314875,0.3608,96468.0,96467.0,0.175687]
[1732975315685,0.3608854,96468.0,96467.0,0.175687]
[1732975316185,0.3608854,96468.0,96467.0,0.178687]
[1732975316380,8.54e-05,96468.0,96467.0,0.178687]
[1732975319382,8.54e-05,96468.0,96467.0,0.179687]
[1732975321489,8.54e-05,96468.0,96467.0,0.1829269]
[1732975321694,8.54e-05,96468.0,96467.0,0.179687]
[1732975322892,8.54e-05,96468.0,96467.0,0.004]
[1732975323088,0.0330854,96468.0,96467.0,0.004]
[1732975325490,0.0340854,96468.0,96467.0,0.003]
[1732975326494,0.051807,96467.0,96466.0,0.051808]
[1732975328194,0.051807,96467.0,96466.0,0.052808]
[1732975328991,0.052807,96467.0,96466.0,0.052808]
[1732975329784,0.052807,96467.0,96466.0,0.054808]
[1732975330499,0.001,96467.0,96466.0,0.052808]
[1732975332498,8.54e-05,96468.0,96466.0,0.053808]
[1732975333101,8.54e-05,96468.0,96466.0,0.055808]
[1732975333601,8.54e-05,96468.0,96466.0,0.052808]
[1732975333803,8.54e-05,96468.0,96466.0,0.056808]
[1732975335095,0.21560913,96484.0,96468.0,0.051807]
[1732975335301,0.24610913,96488.0,96474.0,0.08254787]
[1732975335604,0.21560913,96488.0,96474.0,0.08254787]
[1732975335906,0.21560913,96488.0,96486.0,0.051797]
[1732975336200,9.736e-05,96487.0,96486.0,0.051797]
[1732975336399,9.736e-05,96487.0,96486.0,0.175437]
[1732975337405,9.736e-05,96487.0,96486.0,0.12364]
[1732975338902,0.00309736,96487.0,96486.0,0.12364]
[1732975339402,0.00809736,96487.0,96486.0,0.12364]
[1732975339609,0.00609736,96487.0,96486.0,0.12364]
[1732975339995,0.00109736,96487.0,96486.0,0.12364]
[1732975347817,0.00109736,96487.0,96486.0,0.175437]
[1732975353914,9.736e-05,96487.0,96486.0,0.175437]
[1732975354112,9.736e-05,96487.0,96486.0,0.180437]
[1732975355822,9.736e-05,96487.0,96486.0,0.17953935]
[1732975356013,9.736e-05,96487.0,96486.0,0.18053935]
[1732975358425,9.736e-05,96487.0,96486.0,0.19298632]
[1732975359330,9.736e-05,96487.0,96486.0,0.18053935]
[1732975359922,9.736e-05,96487.0,96486.0,0.54133935]
[1732975364932,9.736e-05,96487.0,96486.0,0.55381219]
[1732975366226,9.736e-05,96487.0,96486.0,0.55473219]
[1732975367433,9.736e-05,96487.0,96486.0,0.56768728]
[1732975367631,9.736e-05,96487.0,96486.0,0.55473219]
[1732975367831,9.736e-05,96487.0,96486.0,0.56768711]
[1732975368032,9.736e-05,96487.0,96486.0,0.5676872]
[1732975368232,9.736e-05,96487.0,96486.0,0.55473219]
[1732975368529,0.1,96500.0,96486.0,0.51589003]
[1732975368744,0.1,96500.0,96499.0,0.41259]
[1732975369037,0.1,96500.0,96499.0,0.53715]
[1732975370345,0.1,96500.0,96499.0,0.53915]
[1732975376633,0.1,96500.0,96499.0,0.5512617]
[1732975380240,0.0646,96518.0,96501.0,0.051789]
[1732975380440,0.032,96518.0,96517.0,0.051781]
[1732975380643,0.032,96518.0,96517.0,0.176341]
[1732975381839,8.647e-05,96520.0,96519.0,0.051779]
[1732975383541,0.00408647,96520.0,96519.0,0.051779]
[1732975385738,0.00108647,96520.0,96519.0,0.051779]
[1732975386241,0.00108647,96520.0,96519.0,0.052779]
[1732975386449,8.647e-05,96520.0,96519.0,0.176419]
[1732975387539,8.647e-05,96520.0,96519.0,0.052779]
[1732975387742,8.647e-05,96520.0,96519.0,0.176419]
[1732975388750,0.05186547,96520.0,96519.0,0.052779]
[1732975388953,0.05186547,96520.0,96498.0,0.01258385]
[1732975388954,0.05179,96499.0,96498.0,0.01258385]
[1732975389247,0.3608,96503.0,96489.0,0.05413034]
[1732975389446,0.3608,96503.0,96488.0,0.12968]
[1732975389447,0.0304,96502.0,96501.0,0.051789]
[1732975390544,0.0304,96502.0,96493.0,0.10826068]
[1732975390740,0.0304,96502.0,96489.0,0.009]
[1732975390948,0.0304,96502.0,96492.0,0.05413034]
[1732975391150,0.083189,96502.0,96501.0,0.009]
[1732975391548,0.083189,96502.0,96501.0,0.060789]
[1732975392347,0.083189,96502.0,96492.0,0.05413034]
[1732975392348,0.0314,96502.0,96492.0,0.05413034]
[1732975392541,0.0314,96502.0,96444.0,0.0129249]
[1732975392542,0.051797,96487.0,96480.0,0.38152911]
[1732975392844,0.051797,96487.0,96479.0,0.05335553]
[1732975393045,0.20676435,96487.0,96479.0,0.00155453]
[1732975393844,0.20776435,96487.0,96486.0,0.00910235]
[1732975394446,0.20776435,96487.0,96486.0,0.00710235]
[1732975395259,0.20776435,96487.0,96486.0,0.00810235]
[1732975395644,0.0518,96480.0,96479.0,0.00155453]
[1732975395848,0.4126,96480.0,96479.0,0.00155453]
[1732975396046,0.56876272,96480.0,96479.0,0.00155453]
[1732975396754,0.56976272,96480.0,96479.0,0.00155453]
[1732975397152,0.56976272,96480.0,96479.0,0.00455453]
[1732975397153,0.57076272,96480.0,96479.0,0.00455453]
[1732975402655,0.002,96480.0,96479.0,0.05635553]
[1732975404259,0.0538,96480.0,96479.0,0.05635553]
[1732975404560,0.0538,96480.0,96479.0,0.18607553]
[1732975405459,0.0538,96480.0,96479.0,0.05635553]
[1732975405763,0.0538,96480.0,96479.0,0.18607553]
[1732975407153,0.0538,96480.0,96479.0,0.13427453]
[1732975407561,0.0538,96480.0,96479.0,0.00455453]
[1732975407877,0.4146,96480.0,96479.0,0.00455453]
[1732975413659,0.3946,96480.0,96479.0,0.00455453]
[1732975418356,0.3946,96480.0,96479.0,0.003]
[1732975420360,0.0338,96480.0,96479.0,0.003]
[1732975420559,0.3946,96480.0,96479.0,0.003]
[1732975420868,0.0338,96480.0,96479.0,0.003]
[1732975421057,0.3946,96480.0,96479.0,0.003]
[1732975421459,0.61085092,96480.0,96479.0,0.003]
[1732975422563,0.69679691,96480.0,96479.0,0.003]
[1732975422755,0.48054599,96480.0,96479.0,0.003]
[1732975424362,0.3946,96480.0,96479.0,0.003]
[1732975424566,0.48048694,96480.0,96479.0,0.003]
[1732975425367,0.3946,96480.0,96479.0,0.003]
[1732975425664,0.48049936,96480.0,96479.0,0.003]
[1732975426062,0.3608,96480.0,96479.0,0.054801]
[1732975426363,0.21651844,96484.0,96483.0,0.051799]
[1732975426562,0.051798,96485.0,96483.0,0.051799]
[1732975426565,0.051798,96485.0,96484.0,0.051798]
[1732975427668,0.052798,96485.0,96484.0,0.057798]
[1732975428268,0.001,96485.0,96484.0,0.057798]
[1732975428474,0.001,96485.0,96484.0,0.058798]
[1732975429564,0.001,96485.0,96484.0,0.07104984]
[1732975436369,0.001,96485.0,96484.0,0.20048984]
[1732975440577,0.00155494,96500.0,96484.0,0.20048984]
[1732975440578,0.00155494,96500.0,96499.0,0.05179]
[1732975440771,0.00155494,96500.0,96499.0,0.18123]
[1732975440970,0.43818064,96519.0,96500.0,0.051789]
[1732975440971,0.051782,96515.0,96500.0,0.051789]
[1732975441181,0.051783,96512.0,96505.0,0.05416916]
[1732975441372,0.051783,96512.0,96501.0,0.0325]
[1732975441973,0.051783,96512.0,96508.0,0.051785]
[1732975442173,0.051783,96512.0,96509.0,0.1294]
[1732975442682,0.052783,96512.0,96509.0,0.1294]
[1732975443584,0.051784,96511.0,96509.0,0.1294]
[1732975444269,0.004,96512.0,96509.0,0.181184]
[1732975444473,0.006,96512.0,96510.0,0.1294]
[1732975444769,0.054783,96512.0,96511.0,0.1294]
[1732975444975,0.054783,96512.0,96511.0,0.181184]
[1732975445182,0.051783,96512.0,96511.0,0.181184]
[1732975446170,0.055783,96512.0,96511.0,0.181184]
[1732975448178,0.060783,96512.0,96511.0,0.181184]
[1732975448787,0.061783,96512.0,96511.0,0.182184]
[1732975448987,0.422583,96512.0,96511.0,0.182184]
[1732975452679,0.422583,96512.0,96511.0,0.1304]
[1732975452897,0.422583,96512.0,96511.0,0.12884]
[1732975453086,0.422583,96512.0,96511.0,0.001]
[1732975453580,0.57803848,96512.0,96511.0,0.001]
[1732975456189,0.6586915,96512.0,96511.0,0.001]
[1732975456391,0.50323602,96512.0,96511.0,0.001]
[1732975456989,0.422583,96512.0,96511.0,0.052784]
[1732975461091,0.45131584,96512.0,96511.0,0.052784]
[1732975461681,0.3708,96512.0,96511.0,0.052784]
[1732975461993,0.01,96512.0,96511.0,0.052784]
[1732975462196,0.006,96512.0,96511.0,0.052784]
[1732975462385,8.647e-05,96520.0,96519.0,0.051779]
[1732975462691,8.647e-05,96520.0,96519.0,0.179619]
[1732975463100,8.647e-05,96520.0,96519.0,0.210819]
[1732975463597,0.00208647,96520.0,96519.0,0.210819]
[1732975464997,0.00308647,96520.0,96519.0,0.210819]
[1732975465499,0.00308647,96520.0,96519.0,0.243819]
[1732975477108,0.00308647,96520.0,96519.0,0.26454181]
[1732975477904,0.00208647,96520.0,96519.0,0.26454181]
[1732975479408,8.647e-05,96520.0,96519.0,0.26454181]
[1732975485713,0.3608,96533.0,96532.0,0.051772]
[1732975485909,0.3608,96533.0,96532.0,0.180132]
[1732975486612,0.3608,96533.0,96532.0,0.18024845]
[1732975487417,0.00012349,96544.0,96543.0,0.051767]
[1732975487606,0.00012349,96544.0,96543.0,0.180127]
[1732975488905,0.03112349,96544.0,96543.0,0.180127]
[1732975490820,0.03112349,96544.0,96543.0,0.181127]
[1732975494523,0.03312349,96544.0,96543.0,0.180127]
[1732975494716,0.03612349,96544.0,96543.0,0.180127]
[1732975495221,0.03612349,96544.0,96543.0,0.19231442]
[1732975498515,0.1128423,96544.0,96543.0,0.19231442]
[1732975498713,0.03612349,96544.0,96543.0,0.19231442]
[1732975501819,0.00512349,96544.0,96543.0,0.19231442]
[1732975508532,0.05688949,96544.0,96543.0,0.19231442]
[1732975512134,0.05688949,96544.0,96543.0,0.19607442]
[1732975513123,0.00512349,96544.0,96543.0,0.19607442]
[1732975515824,0.05688949,96544.0,96543.0,0.19607442]
[1732975517433,0.05688949,96544.0,96543.0,0.06395442]
[1732975517632,0.05688949,96544.0,96543.0,0.19607442]
[1732975522733,0.05688949,96544.0,96543.0,0.06395442]
[1732975522933,0.05688949,96544.0,96543.0,0.19607442]
[1732975527332,0.05688949,96544.0,96543.0,0.14430742]
[1732975531632,0.05688949,96544.0,96543.0,0.01218742]
[1732975531833,0.05688949,96544.0,96543.0,0.13212]
[1732975532936,0.051767,96542.0,96541.0,0.02072014]
[1732975533135,0.051767,96542.0,96541.0,0.15284014]
[1732975534343,0.053767,96542.0,96541.0,0.15284014]
[1732975535843,0.054767,96542.0,96541.0,0.15284014]
[1732975544150,0.054767,96542.0,96541.0,0.15148014]
[1732975547050,0.054767,96542.0,96541.0,0.02072014]
[1732975547350,0.05177,96536.0,96535.0,0.13128]
[1732975547551,0.14710936,96536.0,96535.0,0.13076]
[1732975547743,0.05177,96536.0,96535.0,0.13076]
[1732975548442,0.05177,96536.0,96535.0,0.13176]
[1732975548746,0.05177,96536.0,96535.0,0.002]
[1732975552547,0.41257,96536.0,96535.0,0.002]
[1732975553047,0.56872158,96536.0,96535.0,0.002]
[1732975554240,0.051772,96533.0,96532.0,0.00011645]
[1732975555355,0.051772,96533.0,96532.0,0.00211645]
[1732975555540,0.051772,96533.0,96532.0,0.00311645]
[1732975557254,0.051772,96533.0,96532.0,0.00211645]
[1732975564753,0.051772,96533.0,96532.0,0.05388845]
[1732975565257,0.3608,96536.0,96535.0,0.051771]
[1732975565462,0.41257,96536.0,96535.0,0.051771]
[1732975566860,0.41357,96536.0,96535.0,0.051771]
[1732975567953,0.3618,96536.0,96535.0,0.051771]
[1732975568455,0.051767,96542.0,96541.0,0.051767]
[1732975568655,0.051767,96542.0,96541.0,0.182527]
[1732975570456,0.053767,96542.0,96541.0,0.182527]
[1732975571351,0.054767,96542.0,96541.0,0.182527]
[1732975574250,0.054767,96542.0,96541.0,0.543327]
[1732975574760,0.054767,96542.0,96541.0,0.55536108]
[1732975575673,0.053767,96542.0,96541.0,0.55636108]
[1732975575963,0.051767,96542.0,96541.0,0.55636108]
[1732975576161,0.051767,96542.0,96541.0,0.55736108]
[1732975605874,0.05407427,96540.0,96533.0,0.3608]
[1732975612591,0.3608,96534.0,96533.0,0.051772]
[1732975612783,0.3608,96534.0,96533.0,0.179652]
[1732975612784,0.412571,96534.0,96533.0,0.179652]
[1732975613287,0.3608,96534.0,96533.0,0.179652]
[1732975613586,0.412571,96534.0,96533.0,0.179652]
[1732975613898,0.412571,96534.0,96533.0,0.181652]
[1732975614293,0.3608,96534.0,96533.0,0.183652]
[1732975614486,0.412571,96534.0,96533.0,0.183652]
[1732975616997,0.412571,96534.0,96533.0,0.1956767]
[1732975619797,0.051771,96534.0,96533.0,0.1956767]
[1732975621799,0.051763,96551.0,96533.0,0.1439047]
[1732975622002,0.051769,96539.0,96538.0,0.051769]
[1732975623505,0.051769,96539.0,96538.0,0.001]
[1732975624794,0.051769,96539.0,96538.0,0.052769]
[1732975625600,0.051769,96539.0,96538.0,0.180649]
[1732975627402,0.3608,96550.0,96538.0,0.180649]
[1732975627602,0.051765,96547.0,96543.0,0.051767]
[1732975628506,0.3608,96550.0,96543.0,0.051767]
[1732975628711,0.412563,96550.0,96543.0,0.051767]
[1732975629015,0.05256301,96550.0,96543.0,0.412567]
[1732975629203,0.05256301,96550.0,96543.0,0.051767]
[1732975629204,0.051763,96550.0,96543.0,0.051767]
[1732975629708,0.051765,96546.0,96543.0,0.412567]
[1732975629909,0.00155398,96554.0,96543.0,0.412567]
[1732975630107,0.00155398,96554.0,96543.0,0.051767]
[1732975630108,0.051766,96545.0,96543.0,0.051767]
[1732975630803,0.051766,96545.0,96543.0,0.052767]
[1732975631707,0.051766,96545.0,96543.0,0.001]
[1732975632613,0.051766,96545.0,96543.0,0.12788]
[1732975633303,0.051766,96545.0,96543.0,0.14036671]
[1732975633606,0.05188949,96544.0,96543.0,0.14036671]
[1732975635607,0.05188949,96544.0,96543.0,0.19213371]
[1732975647126,0.05188949,96544.0,96543.0,0.001]
[1732975647521,0.20767652,96544.0,96543.0,0.001]
[1732975654029,0.051772,96533.0,96532.0,0.00011645]
[1732975654226,0.412572,96533.0,96532.0,0.00011645]
[1732975655135,0.412572,96533.0,96532.0,0.00411645]
[1732975655329,0.412572,96533.0,96532.0,0.00611645]
[1732975655941,0.051772,96533.0,96532.0,0.00611645]
[1732975656130,0.412572,96533.0,96532.0,0.00611645]
[1732975658435,0.3618035,96544.0,96532.0,0.13299645]
[1732975658636,0.05177,96538.0,96534.0,0.10584527]
[1732975658835,0.05177,96537.0,96534.0,0.051771]
[1732975659035,0.05177,96537.0,96535.0,0.051771]
[1732975660134,0.36092349,96544.0,96535.0,0.051771]
[1732975660332,0.05177,96536.0,96535.0,0.051771]
[1732975661033,0.05177,96536.0,96535.0,0.052771]
[1732975661437,0.05177,96536.0,96535.0,0.055771]
[1732975661641,0.05177,96536.0,96535.0,0.054771]
[1732975661830,0.36092349,96544.0,96535.0,0.055771]
[1732975662031,0.36092349,96544.0,96535.0,0.004]
[1732975662231,0.36092349,96544.0,96543.0,0.051767]
[1732975662537,0.41268949,96544.0,96543.0,0.177727]
[1732975662923,0.05188949,96544.0,96543.0,0.177727]
[1732975663728,0.00012349,96544.0,96543.0,0.177727]
[1732975663935,0.051763,96550.0,96549.0,0.051763]
[1732975664130,0.3608,96561.0,96553.0,0.051761]
[1732975664330,0.05331498,96554.0,96553.0,0.177721]
[1732975666435,0.05931498,96554.0,96553.0,0.177721]
[1732975667240,0.00755398,96554.0,96553.0,0.177721]
[1732975670938,0.006,96554.0,96553.0,0.177721]
[1732975671339,0.006,96554.0,96553.0,0.656401]
[1732975671640,0.00010265,96555.0,96553.0,0.656401]
[1732975671845,0.051751,96573.0,96571.0,0.051752]
[1732975672047,0.051751,96573.0,96571.0,0.177712]